bitfinex/quotes_ETHUSD_20250611
["timestamp","ask_amount","ask_price","bid_price","bid_amount"]
[1749676362990,0.7749,2823.7,2823.1,4.974]
[1749676364084,0.7749,2823.7,2823.1,1.361]
[1749676364287,0.7945,2823.6,2823.1,1.361]
[1749676369304,0.7945,2823.6,2823.2,0.1768]
[1749676369467,9.10150904,2823.6,2823.2,0.1768]
[1749676369799,8.30700904,2823.6,2823.2,0.1768]
[1749676369979,8.30700904,2823.6,2823.0,10.0]
[1749676369980,0.7598,2823.3,2823.0,0.1768]
[1749676372277,0.9366,2823.3,2822.8,0.1768]
[1749676372882,1.8609609,2823.3,2822.8,0.1768]
[1749676374809,0.8292,2823.2,2822.8,0.1768]
[1749676383118,0.8292,2823.2,2822.4,3.605]
[1749676383119,0.8292,2823.2,2822.6,10.0]
[1749676383333,0.8292,2823.2,2823.1,0.1768]
[1749676384030,0.8172,2823.4,2823.1,0.1768]
[1749676384233,8.30700904,2824.0,2823.3,9.12340904]
[1749676384234,0.8172,2823.9,2823.3,9.12340904]
[1749676384396,0.8172,2823.9,2823.1,1.0251809]
[1749676384397,0.8172,2823.9,2823.1,0.8483809]
[1749676384584,0.8172,2823.9,2823.5,0.1768]
[1749676385182,0.8172,2823.9,2823.3,10.0]
[1749676385390,0.8172,2823.9,2823.7,0.1768]
[1749676392633,0.33177496,2824.1,2823.7,0.1768]
[1749676392832,0.9761,2824.2,2823.7,0.1768]
[1749676393146,0.18449096,2824.5,2823.8,0.8248]
[1749676393342,0.1768,2824.5,2824.0,0.1768]
[1749676393643,0.3317445,2824.4,2824.0,0.1768]
[1749676393809,8.48380904,2824.5,2824.0,0.1768]
[1749676394007,0.33174885,2824.4,2824.0,0.1768]
[1749676394341,8.48380904,2824.5,2824.0,0.1768]
[1749676394844,1.10055158,2824.4,2824.0,0.1768]
[1749676395048,0.7688,2824.4,2824.0,0.1768]
[1749676395248,0.33174951,2824.3,2824.0,0.1768]
[1749676395451,0.33174961,2824.2,2824.0,0.1768]
[1749676395743,0.7688,2824.4,2824.0,0.1768]
[1749676395941,0.33175469,2824.3,2824.0,0.1768]
[1749676396111,0.7688,2824.4,2824.0,0.1768]
[1749676396311,0.33175386,2824.3,2824.0,0.1768]
[1749676396542,0.7688,2824.4,2824.0,0.1768]
[1749676397843,0.33174257,2824.3,2824.0,0.1768]
[1749676398031,0.33174266,2824.3,2824.0,0.1768]
[1749676398217,0.7688,2824.4,2824.0,0.1768]
[1749676398417,0.33174246,2824.3,2824.0,0.1768]
[1749676398617,0.7688,2824.4,2824.0,0.1768]
[1749676398819,0.3317421,2824.3,2824.0,0.1768]
[1749676399057,0.7688,2824.4,2824.0,0.1768]
[1749676399345,0.33174255,2824.3,2824.0,0.1768]
[1749676399527,0.5188,2824.4,2824.0,0.1768]
[1749676399724,0.1768,2824.5,2824.0,0.1768]
[1749676399925,0.33172646,2824.4,2824.0,0.1768]
[1749676400132,0.33172336,2824.4,2824.0,0.1768]
[1749676400332,0.1768,2824.5,2824.0,0.1768]
[1749676401566,0.1768,2824.5,2824.0,1.0039]
[1749676401771,8.48380904,2824.8,2824.3,0.1768]
[1749676402725,0.7752,2824.7,2824.3,0.1768]
[1749676405755,0.33171083,2824.6,2824.3,0.1768]
[1749676405943,0.7752,2824.7,2824.3,0.1768]
[1749676406144,0.33170946,2824.6,2824.3,0.1768]
[1749676406345,0.33170655,2824.5,2824.3,0.1768]
[1749676406542,0.7752,2824.7,2824.3,0.1768]
[1749676406756,0.33170724,2824.6,2824.3,0.1768]
[1749676406953,0.7752,2824.7,2824.3,0.1768]
[1749676407558,0.33170505,2824.6,2824.3,0.1768]
[1749676407736,0.7752,2824.7,2824.3,0.1768]
[1749676408257,0.33170524,2824.6,2824.3,0.1768]
[1749676408453,0.33170536,2824.5,2824.3,0.1768]
[1749676408657,0.7752,2824.7,2824.3,0.1768]
[1749676408957,0.1768,2824.8,2824.3,0.1768]
[1749676408958,0.1768,2824.8,2824.4,0.8271]
[1749676409155,0.18445859,2825.0,2824.5,0.9310909]
[1749676409344,0.952,2825.2,2824.5,0.9310909]
[1749676409345,0.952,2825.2,2824.6,0.1768]
[1749676409532,0.33165761,2825.1,2824.6,0.1768]
[1749676409733,0.952,2825.2,2824.6,0.1768]
[1749676411142,0.7752,2825.5,2824.7,0.8271]
[1749676411350,0.7752,2825.5,2825.0,0.1768]
[1749676411351,0.952,2825.5,2825.0,0.1768]
[1749676411663,1.8779009,2825.5,2825.0,0.1768]
[1749676412229,0.952,2825.5,2825.0,0.1768]
[1749676412430,9.25900904,2825.5,2825.0,0.1768]
[1749676413539,11.25900904,2825.5,2825.0,0.1768]
[1749676413976,0.33162889,2825.4,2825.0,0.1768]
[1749676414139,11.25900904,2825.5,2825.0,0.1768]
[1749676414556,0.33162215,2825.4,2825.0,0.1768]
[1749676414766,11.25900904,2825.5,2825.0,0.1768]
[1749676414965,0.33162236,2825.4,2825.0,0.1768]
[1749676415132,11.25900904,2825.5,2825.0,0.1768]
[1749676415880,0.33162567,2825.4,2825.0,0.1768]
[1749676416043,11.25900904,2825.5,2825.0,0.1768]
[1749676416244,11.25900904,2825.5,2824.5,10.9310909]
[1749676416245,8.30700904,2825.3,2824.5,0.8027]
[1749676416568,8.48380904,2825.3,2824.8,0.1768]
[1749676416778,0.1768,2825.3,2824.8,0.1768]
[1749676416943,8.48380904,2825.3,2824.8,0.1768]
[1749676417147,9.60970994,2825.3,2824.8,0.1768]
[1749676417349,1.3027009,2825.3,2824.8,0.1768]
[1749676419573,8.30700904,2825.1,2824.8,0.1768]
[1749676419735,8.48380904,2825.1,2824.6,0.1768]
[1749676420643,0.1768,2825.1,2824.6,0.1768]
[1749676420850,4.7279009,2825.3,2824.5,0.8027]
[1749676420851,1.1259009,2825.3,2824.5,0.8027]
[1749676421050,1.3027009,2825.3,2824.8,0.1768]
[1749676423881,4.3637,2825.4,2824.9,0.7551]
[1749676424179,4.5405,2825.4,2824.9,0.9319]
[1749676424333,3.7788,2825.4,2824.9,0.9319]
[1749676424542,0.1768,2825.4,2824.9,0.9319]
[1749676424753,2.0,2825.5,2825.2,8.30700904]
[1749676425054,2.0,2825.5,2825.3,0.8483809]
[1749676425265,2.0,2825.5,2825.4,0.7551]
[1749676425988,0.0625,2825.5,2825.4,14.3661]
[1749676426357,0.00279688,2826.7,2825.7,0.55]
[1749676426565,0.00279688,2826.7,2826.4,0.7611]
[1749676426742,0.00279688,2826.7,2826.4,9.06810904]
[1749676426951,0.00279688,2826.7,2826.5,0.9068109]
[1749676427473,0.00279688,2826.7,2826.6,0.7821]
[1749676428183,0.00279688,2826.7,2826.2,0.7821]
[1749676428987,0.00279688,2826.7,2826.2,10.7821]
[1749676429509,0.00279688,2826.7,2826.3,0.7763]
[1749676429709,0.00279688,2826.7,2826.3,2.3862694]
[1749676430311,0.00279688,2826.7,2826.4,8.30700904]
[1749676431021,0.00279688,2826.7,2826.5,0.8258]
[1749676431314,0.00279688,2826.7,2826.6,3.625]
[1749676432919,0.00279688,2826.7,2826.6,19.64920904]
[1749676433078,0.00279688,2826.7,2826.6,25.05258994]
[1749676433481,0.32954809,2826.9,2826.7,10.55]
[1749676433710,0.32954809,2826.9,2826.8,19.07320904]
[1749676433894,0.32954809,2826.9,2826.8,19.62320904]
[1749676434286,0.17265005,2826.9,2826.8,19.62320904]
[1749676434481,0.17265005,2826.9,2826.8,21.23317844]
[1749676434678,0.17265005,2826.9,2826.8,25.79117844]
[1749676434892,0.17265005,2826.9,2826.8,25.96697844]
[1749676435322,0.17265005,2826.9,2826.8,25.70003053]
[1749676435617,0.17265005,2826.9,2826.8,30.25703053]
[1749676436028,0.17265005,2826.9,2826.8,17.6599694]
[1749676436192,0.17265005,2826.9,2826.8,30.25703053]
[1749676436395,0.17265005,2826.9,2826.8,17.1099694]
[1749676436596,0.17265005,2826.9,2826.8,16.1789694]
[1749676436927,0.17265005,2826.9,2826.8,6.1799694]
[1749676437141,0.17265005,2826.9,2826.8,4.57]
[1749676438805,0.17265005,2826.9,2826.8,0.943]
[1749676439013,0.17265005,2826.9,2826.8,4.568]
[1749676439218,0.17265005,2826.9,2826.8,0.943]
[1749676439506,0.17265005,2826.9,2826.8,4.568]
[1749676439700,0.17265005,2826.9,2826.8,6.0248]
[1749676440136,0.17265005,2826.9,2826.8,2.3998]
[1749676440342,0.17265005,2826.9,2826.8,6.0248]
[1749676440842,0.17265005,2826.9,2826.8,16.0248]
[1749676441615,0.17265005,2826.9,2826.8,21.2448]
[1749676441809,0.17265005,2826.9,2826.8,17.6198]
[1749676442017,0.17265005,2826.9,2826.8,34.77586113]
[1749676444108,0.17265005,2826.9,2826.8,30.21686113]
[1749676444335,0.17265005,2826.9,2826.8,34.77586113]
[1749676446407,0.17265005,2826.9,2826.8,30.21686113]
[1749676446602,0.17265005,2826.9,2826.8,34.77386113]
[1749676449842,0.94772688,2828.7,2826.9,10.55]
[1749676450022,0.7635,2828.7,2828.0,0.7653]
[1749676450226,0.7635,2828.7,2828.1,3.624]
[1749676450447,0.7635,2828.7,2828.1,3.97916402]
[1749676451326,0.7635,2828.7,2828.1,0.35516402]
[1749676451510,0.7635,2828.7,2828.1,11.4568]
[1749676451713,0.7635,2828.7,2828.2,3.632]
[1749676452364,0.7635,2828.7,2827.8,0.945]
[1749676452365,0.7635,2828.7,2827.7,0.8019]
[1749676452558,0.7713,2828.6,2827.4,0.7867]
[1749676452761,0.7713,2828.6,2826.8,6.107]
[1749676452762,0.7713,2828.4,2827.2,0.7867]
[1749676452922,0.7713,2828.4,2826.8,18.70406113]
[1749676452923,0.7713,2828.4,2827.0,0.35805255]
[1749676453126,0.7713,2828.3,2827.0,0.945]
[1749676453349,0.7713,2828.3,2827.1,3.633]
[1749676453753,0.7713,2828.3,2826.9,10.7867]
[1749676453937,0.7713,2828.1,2827.0,4.578]
[1749676455266,0.7713,2828.1,2827.0,4.9288809]
[1749676455440,0.7713,2828.1,2827.1,3.632]
[1749676455785,0.7713,2828.1,2827.0,0.3508809]
[1749676456064,0.7713,2828.1,2826.9,10.0]
[1749676456240,0.7713,2827.9,2826.9,10.0]
[1749676458137,0.7954,2828.4,2827.1,10.0]
[1749676458533,3.53559901,2828.4,2827.1,10.0]
[1749676458739,3.53549968,2828.5,2827.1,10.0]
[1749676458950,0.7954,2828.4,2827.1,10.0]
[1749676459151,0.7954,2828.5,2827.1,10.0]
[1749676459350,0.7954,2828.3,2827.2,3.645]
[1749676459561,0.7954,2828.3,2827.3,3.645]
[1749676460069,0.7954,2827.8,2827.4,0.1768]
[1749676460882,0.7954,2827.8,2827.4,3.8208]
[1749676461084,0.7954,2827.8,2827.2,3.645]
[1749676461255,0.1768,2827.7,2827.2,0.1768]
[1749676461454,0.1768,2827.5,2827.2,3.645]
[1749676463093,0.7954,2827.8,2827.4,0.1768]
[1749676463666,0.7954,2827.8,2827.5,8.24998222]
[1749676463987,0.7954,2827.8,2827.4,0.1768]
[1749676464148,0.7954,2827.8,2827.5,3.646]
[1749676464547,0.7954,2827.8,2827.4,0.1768]
[1749676464950,0.7954,2827.8,2827.4,3.8218]
[1749676466003,0.1768,2827.9,2827.4,1.42219622]
[1749676466149,0.9339,2828.1,2827.6,0.1768]
[1749676469101,0.7579,2828.1,2827.5,3.642]
[1749676469302,0.1768,2827.9,2827.5,3.642]
[1749676469514,0.9347,2828.1,2827.6,0.1768]
[1749676470692,0.7699,2828.7,2827.8,8.24998222]
[1749676470908,0.176,2828.5,2828.0,0.176]
[1749676471107,0.7699,2828.7,2828.3,0.176]
[1749676471307,0.7699,2828.7,2828.3,3.82]
[1749676472645,0.7699,2828.7,2828.3,0.176]
[1749676475443,0.176,2828.8,2828.4,0.7667]
[1749676475613,0.176,2828.8,2828.3,0.558]
[1749676476751,0.176,2828.8,2828.4,3.64]
[1749676477728,0.176,2828.8,2828.4,3.639]
[1749676480636,0.176,2828.8,2828.3,0.176]
[1749676480825,0.176,2828.8,2828.4,3.637]
[1749676483327,0.176,2828.8,2828.4,4.18807]
[1749676484583,0.176,2828.8,2828.4,0.55307]
[1749676484737,0.176,2828.8,2828.3,0.176]
[1749676486670,0.8317,2829.9,2828.8,0.7997]
[1749676487038,0.8317,2829.9,2828.9,3.64]
[1749676487253,0.8317,2829.9,2829.0,3.641]
[1749676487453,0.8317,2829.9,2828.9,0.53927]
[1749676487767,0.8317,2829.9,2829.0,4.597]
[1749676489366,0.8317,2829.9,2829.1,10.807]
[1749676490827,0.8317,2829.9,2829.1,0.807]
[1749676491038,0.8317,2829.9,2829.2,4.595]
[1749676491368,0.8317,2829.9,2829.3,0.5402]
[1749676492666,0.8317,2829.9,2829.4,4.596]
[1749676492856,0.8317,2829.9,2829.4,4.58319301]
[1749676494780,0.8317,2829.9,2829.4,12.82071322]
[1749676494959,0.8168,2830.5,2829.5,0.7734]
[1749676495478,0.8168,2830.5,2829.6,8.23752021]
[1749676495479,1.7764452,2830.5,2829.6,8.23752021]
[1749676495678,0.8168,2830.5,2829.6,8.23752021]
[1749676496594,0.176,2830.3,2829.7,0.176]
[1749676498780,0.176,2830.3,2829.8,12.83952021]
[1749676499185,0.176,2830.3,2829.8,8.23752021]
[1749676499361,0.176,2830.3,2829.9,3.649]
[1749676499559,0.176,2830.3,2829.8,8.23752021]
[1749676499756,0.176,2830.3,2829.9,3.649]
[1749676499982,0.176,2830.3,2830.0,8.23752021]
[1749676500799,0.8145,2830.2,2829.7,0.176]
[1749676500981,0.176,2830.0,2829.4,0.176]
[1749676501182,0.8145,2829.9,2829.5,11.88652021]
[1749676501560,0.8145,2829.9,2829.4,0.176]
[1749676501811,0.8145,2829.4,2828.9,0.176]
[1749676502262,0.176,2829.2,2828.6,0.176]
[1749676502462,0.8145,2829.1,2828.7,3.652]
[1749676502773,0.176,2829.0,2828.3,8.23752021]
[1749676503097,0.176,2829.0,2828.3,8.41352021]
[1749676503412,0.176,2829.0,2828.4,3.656]
[1749676503696,0.176,2829.0,2828.5,3.656]
[1749676503996,3.53436098,2829.4,2828.5,3.655]
[1749676503997,0.8193,2828.9,2828.5,3.655]
[1749676504307,0.176,2828.7,2828.3,8.41352021]
[1749676504463,0.8193,2828.6,2827.5,0.38188]
[1749676504802,0.176,2828.3,2827.8,8.41432021]
[1749676505157,0.176,2828.3,2827.8,3.8348]
[1749676505662,0.8193,2828.2,2827.8,0.1768]
[1749676505891,0.8193,2828.2,2827.3,13.37425307]
[1749676506090,0.1768,2828.0,2827.5,0.1768]
[1749676506300,0.1768,2827.8,2827.5,3.657]
[1749676506621,0.1768,2827.8,2827.3,0.1768]
[1749676506907,0.1768,2827.8,2827.4,3.657]
[1749676507283,0.8218,2827.7,2827.1,0.953]
[1749676507729,0.1768,2827.4,2827.2,3.657]
[1749676507886,0.1768,2827.4,2826.9,0.1768]
[1749676508213,0.1768,2827.4,2826.9,3.8348]
[1749676508364,0.1768,2827.4,2826.9,5.57279531]
[1749676508702,0.1768,2827.4,2826.9,1.91479531]
[1749676509005,0.1768,2827.4,2827.0,3.66]
[1749676509221,0.1768,2827.4,2826.9,0.1768]
[1749676509363,0.1768,2827.4,2827.0,3.66]
[1749676509814,0.1768,2827.4,2826.9,0.1768]
[1749676509978,0.1768,2827.4,2827.0,3.66]
[1749676510300,0.18428749,2828.1,2828.0,2.0014]
[1749676510463,6.68661642,2828.1,2828.0,2.0014]
[1749676510660,3.72023034,2828.1,2828.0,2.0014]
[1749676510872,13.72023034,2828.1,2828.0,2.0014]
[1749676511106,14.27023034,2828.1,2828.0,2.0014]
[1749676512363,0.18428749,2828.1,2828.0,2.0014]
[1749676512591,4.9978744,2828.1,2828.0,2.0014]
[1749676513196,1.46193155,2828.1,2828.0,2.0014]
[1749676513391,0.2152,2828.1,2828.0,2.0014]
[1749676522324,0.5288403,2828.7,2828.0,2.0014]
[1749676522325,0.39944784,2828.7,2828.0,2.0014]
[1749676522525,0.2152,2828.7,2828.1,0.8065]
[1749676522690,0.2152,2828.7,2828.1,1.18389]
[1749676523098,0.176,2828.6,2828.1,1.35989]
[1749676525952,0.176,2828.9,2828.4,0.176]
[1749676526839,0.176,2828.9,2828.6,0.7795]
[1749676528518,0.2152,2829.4,2828.6,1.24125]
[1749676528723,0.2152,2829.4,2828.6,1.41725]
[1749676528724,0.176,2829.1,2828.6,1.41725]
[1749676530847,0.176,2829.1,2828.6,0.9555]
[1749676535524,0.18418296,2829.5,2828.6,12.59215307]
[1749676535740,0.176,2829.4,2828.9,0.176]
[1749676535934,0.176,2829.4,2828.7,0.7949]
[1749676535935,12.59215307,2829.4,2828.7,0.7949]
[1749676536138,0.176,2828.9,2828.5,0.7949]
[1749676536540,0.176,2828.9,2828.5,4.4509]
[1749676536820,0.3912,2828.9,2828.0,2.7528]
[1749676537158,12.59215307,2828.7,2828.0,2.0014]
[1749676537356,0.3912,2828.9,2828.0,2.0014]
[1749676537357,16.12781992,2828.4,2828.0,2.0014]
[1749676537523,1.61278199,2828.3,2828.0,2.0014]
[1749676537719,3.75060419,2828.6,2828.0,2.0014]
[1749676537918,3.53551224,2828.5,2828.0,2.0014]
[1749676538330,3.75057453,2828.6,2828.0,2.0014]
[1749676538662,0.2152,2828.6,2828.0,2.0014]
[1749676538820,3.53477044,2829.1,2828.1,0.7514]
[1749676538821,0.2152,2829.1,2828.1,0.7514]
[1749676539016,1.35347704,2829.0,2828.1,0.7514]
[1749676539218,0.2152,2829.1,2828.1,0.7514]
[1749676541566,0.2152,2829.1,2828.2,4.656]
[1749676541750,0.2152,2829.1,2828.1,0.7514]
[1749676546166,0.2152,2829.1,2828.2,3.681]
[1749676546372,3.5343377,2829.4,2828.2,3.681]
[1749676546558,0.18419895,2829.2,2828.2,3.681]
[1749676546930,0.176,2828.5,2828.2,3.681]
[1749676553673,0.176,2828.5,2828.1,0.7514]
[1749676553879,0.176,2828.5,2828.2,3.672]
[1749676554059,0.176,2828.5,2828.1,0.7514]
[1749676554263,0.176,2828.5,2828.1,4.4224]
[1749676555181,0.176,2828.5,2828.1,0.7514]
[1749676556454,3.53496556,2828.9,2828.1,0.7514]
[1749676556650,0.176,2828.3,2828.1,0.7514]
[1749676557311,0.35349656,2828.8,2828.1,0.7514]
[1749676557578,0.176,2828.2,2828.1,0.7514]
[1749676558784,0.176,2828.2,2827.8,0.8292]
[1749676558970,0.176,2828.2,2827.9,3.666]
[1749676559550,0.176,2828.2,2827.8,0.8292]
[1749676560185,0.1768,2828.0,2827.8,0.8292]
[1749676568381,0.176,2828.4,2828.0,0.808]
[1749676568583,0.176,2828.8,2828.4,0.8056]
[1749676568932,8.24652466,2828.7,2827.9,0.8056]
[1749676569085,3.53500247,2828.9,2827.9,0.8056]
[1749676569086,0.176,2828.3,2828.0,3.66]
[1749676569292,0.176,2828.2,2828.0,3.66]
[1749676569490,0.176,2828.2,2827.9,0.8056]
[1749676569828,0.176,2828.2,2828.0,3.661]
[1749676570529,0.176,2828.2,2827.9,0.8056]
[1749676570823,0.1768,2828.0,2827.7,4.4666]
[1749676571187,0.1768,2828.0,2827.7,4.4656]
[1749676577959,0.1768,2828.0,2827.7,0.8056]
[1749676578259,0.1768,2828.0,2827.6,3.653]
[1749676583736,0.1768,2828.0,2827.9,0.7806]
[1749676583961,1.05304304,2829.1,2827.9,0.7806]
[1749676583962,0.176,2828.3,2827.9,1.68331247]
[1749676584147,0.176,2828.3,2828.0,3.649]
[1749676584328,0.176,2828.3,2827.9,0.7806]
[1749676584674,0.176,2828.3,2827.9,4.4296]
[1749676585753,0.176,2828.3,2827.9,0.7806]
[1749676586053,0.176,2828.3,2827.9,4.4296]
[1749676587374,0.176,2828.3,2827.9,5.85477254]
[1749676589056,0.176,2828.3,2827.9,4.4266]
[1749676590329,0.18421349,2828.7,2827.9,4.4256]
[1749676590636,0.176,2828.1,2827.9,3.645]
[1749676591976,0.176,2828.1,2827.9,3.643]
[1749676592140,0.18421349,2828.7,2828.0,8.24652466]
[1749676592341,0.176,2828.3,2828.0,8.24652466]
[1749676592650,0.176,2828.3,2828.1,1.18895247]
[1749676594247,0.176,2828.3,2828.0,10.0]
[1749676598057,0.176,2828.3,2827.8,11.57560075]
[1749676598258,0.176,2828.3,2827.8,5.21260075]
[1749676600281,0.176,2828.3,2827.8,1.57560075]
[1749676600581,0.176,2828.3,2827.8,5.21160075]
[1749676600776,0.176,2828.3,2827.8,1.57560075]
[1749676600939,11.96595876,2828.7,2827.8,3.636]
[1749676601144,0.1768,2828.0,2827.8,3.636]
[1749676602874,0.1768,2828.0,2827.6,11.39880075]
[1749676603185,0.1768,2828.0,2827.7,3.635]
[1749676603347,0.1768,2828.0,2827.7,3.634]
[1749676603778,0.1768,2828.0,2827.6,1.39880075]
[1749676603999,0.1768,2828.0,2827.6,5.03180075]
[1749676605567,0.1768,2828.0,2827.6,1.39880075]
[1749676606179,0.18421349,2828.7,2827.9,8.24652466]
[1749676606383,0.18421349,2828.7,2827.9,3.632]
[1749676606384,0.176,2828.2,2827.9,3.632]
[1749676606584,0.176,2828.2,2827.8,1.39880075]
[1749676606788,0.176,2828.2,2827.8,3.0347272]
[1749676607015,8.42252466,2828.2,2827.7,1.57560075]
[1749676607149,0.1768,2827.8,2827.5,5.03180075]
[1749676607347,0.1768,2827.8,2827.4,5.03180075]
[1749676607576,0.1768,2827.8,2827.4,3.633]
[1749676608281,0.1768,2827.8,2827.4,10.0]
[1749676608868,0.1768,2827.8,2827.5,8.24652466]
[1749676609584,0.1768,2827.8,2827.4,1.39880075]
[1749676609909,18.4307674,2828.4,2827.1,3.633]
[1749676609910,0.1768,2827.4,2827.1,3.633]
[1749676610089,0.1768,2827.4,2826.9,5.20860075]
[1749676610295,8.24652466,2827.8,2826.9,0.1768]
[1749676610448,0.1768,2827.2,2826.8,3.633]
[1749676612360,0.1768,2827.2,2826.8,3.634]
[1749676613787,11.78322155,2827.5,2826.3,2.21960075]
[1749676613960,0.1768,2827.0,2826.5,0.1768]
[1749676614305,0.1768,2827.0,2826.5,8.42332466]
[1749676615658,0.1768,2827.0,2826.5,0.1768]
[1749676615862,0.1768,2826.7,2826.4,10.0]
[1749676616059,0.1768,2826.7,2826.2,0.1768]
[1749676616405,0.1768,2826.7,2826.3,8.24652466]
[1749676616765,0.1768,2826.7,2826.2,8.42332466]
[1749676618698,0.1768,2826.7,2826.2,0.1768]
[1749676618902,0.1768,2826.7,2826.2,3.8108]
[1749676619402,0.1768,2826.7,2826.2,0.1768]
[1749676619807,8.24652466,2827.2,2825.9,0.8208]
[1749676619963,0.1768,2826.6,2826.1,0.1768]
[1749676620163,0.1768,2826.3,2826.0,10.0]
[1749676620595,0.1768,2826.6,2826.1,0.1768]
[1749676621783,0.1768,2826.6,2826.1,8.42332466]
[1749676622086,1.1783255,2827.4,2826.5,8.24652466]
[1749676622285,0.1768,2827.1,2826.8,8.24652466]
[1749676622801,0.1768,2827.1,2826.7,0.8208]
[1749676623165,0.1768,2827.1,2826.6,3.636]
[1749676623516,0.1768,2827.1,2826.2,12.91652466]
[1749676623517,0.1768,2826.6,2826.2,4.67]
[1749676623664,0.1768,2826.6,2826.2,10.0]
[1749676623864,0.1768,2826.6,2826.2,11.84828]
[1749676624810,0.1768,2826.6,2826.3,8.24652466]
[1749676625015,0.1768,2826.6,2826.4,0.8145]
[1749676625319,0.1768,2826.6,2826.2,11.84828]
[1749676625817,0.1768,2826.6,2826.2,15.48528]
[1749676626022,10.0,2827.5,2826.2,15.48528]
[1749676626023,13.639,2827.8,2826.5,9.06102466]
[1749676626170,0.1768,2827.1,2826.8,8.24652466]
[1749676626987,8.60419276,2828.1,2826.7,10.0]
[1749676627313,0.1768,2827.3,2826.9,8.24652466]
[1749676627491,0.1768,2827.3,2826.9,9.04002466]
[1749676628516,8.42332466,2827.5,2827.0,0.1768]
[1749676628672,8.42332466,2827.5,2826.6,0.7935]
[1749676629010,0.84233247,2827.4,2826.6,0.7935]
[1749676629387,0.84233247,2827.4,2826.6,3.638]
[1749676632794,4.37915466,2827.4,2826.6,3.638]
[1749676634293,0.84233247,2827.4,2826.6,3.638]
[1749676634492,0.84233247,2827.4,2826.4,10.0]
[1749676634692,8.24652466,2827.2,2826.3,0.7935]
[1749676635203,8.24652466,2827.0,2826.1,0.7585]
[1749676635424,8.24652466,2827.2,2826.1,0.7585]
[1749676635718,11.7836022,2827.2,2826.1,10.7585]
[1749676635879,11.78360116,2827.2,2826.1,10.7585]
[1749676636083,1.17836012,2827.1,2826.1,10.7585]
[1749676636309,8.24652466,2827.0,2826.1,0.7585]
[1749676636543,8.24652466,2827.0,2826.1,10.7585]
[1749676636841,1.17836012,2827.1,2826.1,10.7585]
[1749676637044,8.43084702,2827.2,2826.1,10.7585]
[1749676637248,11.96792025,2827.2,2826.1,10.7585]
[1749676637406,0.18432236,2827.2,2826.5,8.24652466]
[1749676637607,0.18432236,2827.2,2826.6,0.8244]
[1749676637807,3.636,2827.4,2826.6,0.8244]
[1749676638148,8.24652466,2826.9,2826.0,0.8244]
[1749676638333,3.53762548,2826.8,2826.0,0.8244]
[1749676638535,0.1768,2826.2,2825.7,0.1768]
[1749676638736,0.1768,2826.2,2825.6,0.8244]
[1749676638737,0.1768,2826.0,2825.6,0.8244]
[1749676640620,0.1768,2826.0,2825.6,10.8244]
[1749676641228,0.90158858,2827.3,2825.9,8.24652466]
[1749676641428,13.53742182,2827.0,2825.9,8.24652466]
[1749676641624,4.89121723,2826.9,2825.9,8.24652466]
[1749676642211,4.89121723,2826.9,2825.7,0.8294]
[1749676642212,8.79652466,2826.7,2825.7,0.8294]
[1749676642417,8.24652466,2826.5,2825.7,0.8294]
[1749676643875,8.24652466,2826.3,2825.4,0.8294]
[1749676644173,8.24652466,2826.3,2825.4,10.8294]
[1749676645067,0.82465247,2826.4,2825.4,10.8294]
[1749676651375,0.1768,2825.7,2825.4,10.8294]
[1749676654741,0.0768,2825.7,2825.4,10.8294]
[1749676654948,0.0768,2825.7,2825.4,12.75467247]
[1749676658885,0.1768,2825.9,2825.5,8.24652466]
[1749676659190,0.1768,2825.9,2825.5,11.87852466]
[1749676659394,0.1768,2825.9,2825.6,0.7915]
[1749676659562,0.1768,2825.9,2825.6,9.03802466]
[1749676659767,0.1768,2825.9,2825.7,0.53307783]
[1749676661790,0.1768,2826.1,2825.8,8.24652466]
[1749676661995,0.1768,2826.1,2825.7,4.16507783]
[1749676664292,0.18436765,2826.4,2825.9,0.8104]
[1749676664501,0.1768,2826.4,2825.9,0.9872]
[1749676664790,0.1768,2826.4,2825.9,2.32708025]
[1749676665455,0.1768,2826.4,2825.9,0.9872]
[1749676673093,8.24652466,2826.4,2825.6,0.7583]
[1749676673289,0.1768,2825.9,2825.6,0.7583]
[1749676684128,0.18436778,2826.5,2825.7,8.24652466]
[1749676684297,0.1768,2826.2,2825.8,0.7773]
[1749676685128,1.56500456,2826.5,2825.5,15.72103735]
[1749676685339,0.1768,2826.0,2825.6,0.7773]
[1749676690127,0.1768,2826.0,2825.7,8.24652466]
[1749676690451,1.0602831,2827.6,2826.1,0.7617]
[1749676690649,0.1768,2827.0,2826.4,8.24652466]
[1749676690853,0.1768,2827.0,2826.5,0.9385]
[1749676694488,8.24652466,2827.4,2826.5,0.7617]
[1749676694643,0.1768,2826.8,2826.5,0.7617]
[1749676694984,0.1768,2827.0,2826.7,0.7951]
[1749676699420,0.18429873,2827.6,2826.7,9.04162466]
[1749676699705,0.18429873,2827.6,2826.8,0.1768]
[1749676699706,0.1768,2827.4,2826.8,0.1768]
[1749676700206,8.24652466,2827.2,2826.7,0.7951]
[1749676700413,0.1768,2827.0,2826.7,0.7951]
[1749676705692,0.1768,2827.0,2826.5,0.1768]
[1749676705693,0.1768,2827.0,2826.5,1.0016]
[1749676707238,8.24652466,2827.5,2826.5,0.8248]
[1749676707531,0.1768,2827.0,2826.5,1.0016]
[1749676711656,0.18429873,2827.6,2826.7,8.24652466]
[1749676711827,0.1768,2827.2,2826.8,0.7907]
[1749676730158,0.1768,2827.0,2826.6,10.7523]
[1749676730359,0.1768,2827.0,2826.6,0.7523]